Cogmind - Beta 12 @@@ ROGUE MODE // 2023.03.23 @ 08:21:04 // Winter2019/RPGLIKE Player: ArabianSandBoa Result: Self-destructed Performance ------------- Evolutions (5) 2500 Regions Visited (24) 4800 Robots Destroyed (635) 3175 Value Destroyed (27849) 27849 Prototype IDs (66) 1320 Alien Tech Used (0) 0 Bonus (15219) 15219 TOTAL SCORE: 54863 Bonus ------- Triggered High Security 1000 High Alert Combat Kills 11083 Follower Combat Kills 2005 Entered Garrisons 800 Aligned with FarCom 300 Met Imprinter 300 Destroyed Z-Imprinter 1000 Triggered Deep Caves Wall 500 Exposed GOLEM Chamber 500 Friendly Fire -2269 Cogmind --------- Core Integrity 159/1000 Matter 139/300 Energy 1680/1680 System Corruption 1% Temperature Danger (411) Movement Treading (244) Ox1 Location -5/Factory Parts ------- > --- POWER (4) -------- Zionite Light DM Reactor Light Particle Reactor (fused) Assembled Flux Generator > --- PROPULSION (4) --- Light Treads Biometal Medium Treads Improved Heavy Siege Treads > --- UTILITY (10) ----- Superbattery Surveybot 24 Scanner 0b10 Decoder Chip [Generic] Improved Particle Charger Advanced Phase Shifter Damper Plating Antimissile System > --- WEAPON (5) ------- Assembled Focal Cannon Assembled Focal Cannon Assembled Focal Cannon 8R-AWN's Boregun 8R-AWN's Boregun > --- INVENTORY (6) ---- Encrypted Comm Array 8R-AWN's Armor/EX Peak State ------------ > --- POWER ------------ Zionite Light DM Reactor Light Particle Reactor Assembled Flux Generator > --- PROPULSION ------- Biometal Medium Treads Improved Heavy Siege Treads Assembled Alloy Leg > --- UTILITY ---------- Superbattery Surveybot 24 Scanner 0b10 Decoder Chip [Generic] Advanced Phase Shifter 8R-AWN's Armor/EX GOLEM Unit > --- WEAPON ----------- Assembled Focal Cannon Assembled Focal Cannon Assembled Focal Cannon 8R-AWN's Boregun 8R-AWN's Boregun > --- INVENTORY -------- Encrypted Comm Array Damper Plating Antimissile System [Rating: 195] Favorites ----------- Power Light Particle Reactor Engine Light Angular Momentum Engine Power Core Light Neutrino Core Reactor Light Particle Reactor Propulsion Assembled Alloy Leg Treads Improved Treads Leg Assembled Alloy Leg Wheel Armored Huge Wheel Hover Unit Zionite Glidesys II Utility Salvage Targeting Computer Device Advanced Weapon Cycler Storage Superbattery Processor Salvage Targeting Computer Hackware Hacking Suite Protection 8R-AWN's Armor/TH Weapon 8R-AWN's Boregun Energy Gun Heavy EM Pulse Gun Energy Cannon Assembled Focal Cannon Ballistic Gun 8R-AWN's Boregun Ballistic Cannon Mass Driver Launcher Rocket Array Impact Weapon Gravity Flail Slashing Weapon Katana Piercing Weapon CR-A16's Pointy Stick Build | -11 -10 -10 -9 -9 -9 -8 -8 -8 -8 -8 -8 -8 -7 -7 -7 -7 -7 -6 -6 -6 -6 -6 -6 -5 ------- Run | Jun Mat Min Mat Min Exi Min Mat Gar Mat Gar Mat Gar Fac Low Low Zio Dee Pro Fac Was Fac Gar Fac Fac Slots Evolved 19 | 4 2 1 3 . . . . 3 . . . . . . . 1 . 1 2 . . 1 . 1 Power 3 | . . . 1 . . . . 1 . . . . . . . . . 1 . . . . . . Propulsion 3 | . 1 . . . . . . . . . . . . . . . . . 1 . . 1 . . Utility 9 | 3 1 1 1 . . . . 1 . . . . . . . 1 . . . . . . . 1 Weapon 4 | 1 . . 1 . . . . 1 . . . . . . . . . . 1 . . . . . Parts Attached 211 | 4 22 4 26 7 27 14 6 16 1 1 . 4 6 1 . 14 32 3 9 5 . 5 . 4 Power 19 | . . 1 4 . 3 1 . 1 . . . . 1 . . . 4 1 2 1 . . . . Engine 5 | . . 1 4 . . . . . . . . . . . . . . . . . . . . . Core 5 | . . . . . 2 . . 1 . . . . 1 . . . . . 1 . . . . . Reactor 9 | . . . . . 1 1 . . . . . . . . . . 4 1 1 1 . . . . Propulsion 15 | 1 3 . 3 2 . . . . . . . . . . . . 2 . . 2 . 1 . 1 Treads 10 | . 2 . 3 1 . . . . . . . . . . . . . . . 2 . 1 . 1 Leg . | . . . . . . . . . . . . . . . . . . . . . . . . . Wheel 4 | 1 1 . . 1 . . . . . . . . . . . . 1 . . . . . . . Hover 1 | . . . . . . . . . . . . . . . . . 1 . . . . . . . Flight . | . . . . . . . . . . . . . . . . . . . . . . . . . Utility 117 | 2 9 2 7 3 13 13 6 14 . 1 . 4 1 1 . 9 19 2 4 . . 4 . 3 Device 68 | 2 5 . 5 1 7 8 3 11 . 1 . 3 . 1 . 3 10 1 1 . . 3 . 3 Storage 2 | . . . . . . 1 . . . . . . . . . . 1 . . . . . . . Processor 18 | . 3 1 1 2 3 2 1 . . . . . . . . 3 1 1 . . . . . . Hackware 5 | . 1 . . . . 1 1 . . . . 1 . . . 1 . . . . . . . . Protection 24 | . . 1 1 . 3 1 1 3 . . . . 1 . . 2 7 . 3 . . 1 . . Artifact . | . . . . . . . . . . . . . . . . . . . . . . . . . Weapon 60 | 1 10 1 12 2 11 . . 1 1 . . . 4 . . 5 7 . 3 2 . . . . Energy Gun 11 | . 4 . . . . . . . . . . . 2 . . . 5 . . . . . . . Energy Cannon 6 | . . 1 2 . . . . . . . . . 1 . . 1 . . 1 . . . . . Ballistic Gun 24 | 1 2 . 6 1 6 . . . 1 . . . . . . 2 2 . 2 1 . . . . Ballistic Cannon 3 | . 1 . . 1 . . . 1 . . . . . . . . . . . . . . . . Launcher 7 | . 3 . 1 . 1 . . . . . . . 1 . . 1 . . . . . . . . Special Weapon . | . . . . . . . . . . . . . . . . . . . . . . . . . Impact Weapon 1 | . . . . . . . . . . . . . . . . . . . . 1 . . . . Slashing Weapon 7 | . . . 3 . 4 . . . . . . . . . . . . . . . . . . . Piercing Weapon 1 | . . . . . . . . . . . . . . . . 1 . . . . . . . . Special Melee Weapon . | . . . . . . . . . . . . . . . . . . . . . . . . . Unidentified Prototypes 35 | . . . 1 . 11 5 . . . . . . 1 . . 3 11 . 2 1 . . . . Corrupted Parts 1 | . . . 1 . . . . . . . . . . . . . . . . . . . . . System Corruption 3 | . . . 3 . . . . . . . . . . . . . . . . . . . . . Parts Lost 6 | . . . 2 . . . 1 . . . . . . . . 1 . . 2 . . . . . Power . | . . . . . . . . . . . . . . . . . . . . . . . . . Propulsion 1 | . . . 1 . . . . . . . . . . . . . . . . . . . . . Utility 4 | . . . 1 . . . 1 . . . . . . . . 1 . . 1 . . . . . Weapon 1 | . . . . . . . . . . . . . . . . . . . 1 . . . . . Highest Loss Streak 2 | . . . 2 . . . 1 . . . . . . . . 1 . . 1 . . . . . To Critical Strikes . | . . . . . . . . . . . . . . . . . . . . . . . . . Average Slot Usage (%) 85 | . 96 99 98 96 83 85 90 91 93 94 94 93 93 94 94 68 72 72 78 76 76 77 77 77 Engine 3 | . 11 9 9 14 10 . . . . . . . . . . . . . . . . . . . Core 3 | . . . . . 2 7 7 8 11 11 11 11 10 11 11 11 . . . . . . . . Reactor 6 | . . . . . 1 6 7 6 5 5 5 5 5 5 5 5 11 9 13 13 14 13 13 13 Treads 4 | . 6 19 15 8 . . . . . . . . . . . . . . . 8 9 11 13 13 Leg 2 | . . . . . . . . . . . . . . . . . 7 10 9 1 . . . . Wheel 2 | . 6 . . 2 7 7 7 6 5 5 5 5 5 5 5 5 1 . . . . . . . Device 17 | . 33 5 7 7 10 14 20 22 29 29 29 29 29 29 29 7 14 13 14 14 14 13 13 13 Storage 1 | . . . . . . . . . . . . . . . . . 4 5 4 4 4 4 4 4 Processor 12 | . 7 33 31 34 27 21 15 17 11 11 11 11 11 11 11 10 . 3 4 4 4 4 4 4 Hackware 3 | . 8 9 8 7 4 . 6 6 5 5 5 4 1 . . 2 . . . . . . . . Protection 4 | . . . 5 . 2 7 5 . . . . . 3 5 5 10 9 6 4 4 4 4 4 4 Energy Gun 2 | . 13 15 . . . . . . . . . . 5 . . . 1 . . . . . . . Energy Cannon 5 | . . 4 3 . . . . . . . . . 1 5 5 1 10 10 13 14 14 13 13 13 Ballistic Gun 11 | . 7 . 12 20 8 21 21 19 22 23 23 23 12 11 11 6 4 10 9 8 9 9 9 8 Launcher 1 | . 1 . . . . . . . . . . . 2 5 5 3 3 . . . . . . . Naked Turns . | . . . . . . . . . . . . . . . . . . . . . . . . . Heaviest Build 186 | 9 14 26 38 33 77 65 61 74 74 68 67 73 101 101 96 116 151 146 156 158 158 182 182 186 Greatest Support 130 | 16 46 46 46 43 40 28 28 28 28 28 28 28 28 28 28 28 60 60 60 110 110 130 130 130 Greatest Overweight (x) 9 | . 4 . 5 9 2 2 2 2 2 2 2 2 3 3 3 4 4 2 2 4 1 1 1 1 Average Overweight (x) 1 | . . . . . . 1 1 1 2 2 2 2 2 3 3 2 2 1 2 1 1 1 1 1 Largest Inventory Capacity 6 | . 2 2 4 4 5 6 6 6 6 6 6 6 6 6 6 6 6 6 6 6 6 6 6 6 Average Capacity 5 | . . 2 3 4 4 5 6 6 6 6 6 6 6 6 6 6 6 6 6 6 6 6 6 6 Most Carried 6 | . 2 2 4 4 5 6 6 6 6 6 6 6 6 6 6 6 6 6 6 6 6 6 6 6 Average Carried 4 | . . 1 3 3 3 5 5 5 6 6 6 6 6 6 6 5 5 5 5 5 6 5 5 5 Final Capacity 6 | . 2 2 4 4 5 6 6 6 6 6 6 6 6 6 6 6 6 6 6 6 6 6 6 6 Final Carried 6 | . 2 2 4 4 5 6 6 6 6 6 6 6 6 6 6 6 6 6 3 6 6 5 6 4 Class Distribution -------------------- 30% | Scavenger-Mutant 26% | Hacker-Mutant 10% | Generator-Golem 9% | Generator-Gunner 8% | Hacker-Gunner 4% | Hacker-Skirmisher Dominant Class ---------------- Hacker-Skirmisher | -10/Materials Hacker-Mutant | -10/Mines Hacker-Mutant | -9/Materials Hacker-Gunner | -9/Mines Hacker-Mutant | -9/Exiles Scavenger-Mutant | -8/Mines Scavenger-Mutant | -8/Materials Scavenger-Mutant | -8/Garrison Scavenger-Mutant | -8/Materials Scavenger-Mutant | -8/Garrison Scavenger-Mutant | -8/Materials Scavenger-Mutant | -8/Garrison Scavenger-Mutant | -7/Factory Scavenger-Mutant | -7/Lower Caves Scavenger-Mutant | -7/Lower Caves Hacker-Mutant | -7/Zion Hacker-Gunner | -7/Deep Caves Generator-Golem | -6/Proximity Caves Generator-Golem | -6/Factory Generator-Gunner | -6/Waste Generator-Gunner | -6/Factory Generator-Gunner | -6/Garrison Generator-Gunner | -6/Factory Generator-Gunner | -5/Factory Resources | -11 -10 -10 -9 -9 -9 -8 -8 -8 -8 -8 -8 -8 -7 -7 -7 -7 -7 -6 -6 -6 -6 -6 -6 -5 ----------- Run | Jun Mat Min Mat Min Exi Min Mat Gar Mat Gar Mat Gar Fac Low Low Zio Dee Pro Fac Was Fac Gar Fac Fac Matter Collected 14322 | 254 722 53 1826 455 465 910 1143 1680 577 1067 . 1276 798 138 516 40 774 246 320 53 . 50 348 611 Remotely 88 | . 88 . . . . . . . . . . . . . . . . . . . . . . . Salvage Created 30010 | 217 1623 506 2940 1180 380 842 2760 1617 1038 1090 . 1716 1199 367 915 . 1897 1030 2401 287 232 383 1892 3498 Parts 1689 | 15 79 33 217 55 71 73 166 129 71 84 . 88 91 13 42 . 59 42 106 2 8 20 87 138 Haulers Intercepted 23 | . 2 . 6 . . . 4 . 4 . . . 3 . . . . . 2 . 2 . . . Recyclers Shooed 12 | . 4 . 3 . . . 3 . . . . . . . . . . . 2 . . . . . Parts Field Recycled . | . . . . . . . . . . . . . . . . . . . . . . . . . Retrieved Matter . | . . . . . . . . . . . . . . . . . . . . . . . . . Parts Self-Destructed 100 | . . . . . . . . . . . . . . 13 42 3 . 42 . . . . . . Prevented . | . . . . . . . . . . . . . . . . . . . . . . . . . Kills | -11 -10 -10 -9 -9 -9 -8 -8 -8 -8 -8 -8 -8 -7 -7 -7 -7 -7 -6 -6 -6 -6 -6 -6 -5 ------- Run | Jun Mat Min Mat Min Exi Min Mat Gar Mat Gar Mat Gar Fac Low Low Zio Dee Pro Fac Was Fac Gar Fac Fac Combat Hostiles Destroyed 512 | . 19 4 57 17 3 14 41 39 14 26 . 30 18 8 14 . 63 17 26 . 1 9 41 51 Melee 1 | . . . . . . . . . . . . . . . . . . . . . . . . 1 Guns 343 | . 18 4 45 17 2 14 41 39 14 26 . 30 13 5 14 . 8 7 3 . . . 19 24 Cannons 97 | . . . 8 . . . . . . . . . . . . . 11 10 18 . 1 9 22 18 AOE 71 | . 1 . 4 . 1 . . . . . . . 5 3 . . 44 . 5 . . . . 8 Classes Destroyed 29 | 3 5 . 5 2 1 1 3 2 . 1 . . . . . . 4 . . . 1 . 1 . Worker 26 | 2 3 1 1 1 . 2 3 . 2 . . . 3 . . . . . 5 . . . 1 2 Builder 22 | . 3 . 5 . . 4 3 . 1 . . . 4 . . . . . 2 . . . . . Tunneler 14 | 5 1 1 . 2 . 2 . . 1 . . . . . . . . . 2 . . . . . Hauler 23 | . 2 . 6 . . . 4 . 4 . . . 3 . . . . . 2 . 2 . . . Recycler 34 | 1 7 6 2 5 . 1 3 . 2 . . . 1 . . . . . 5 . . . . 1 Carrier 5 | . . . . . . . 1 1 . . . . . . . . . . . . . . . 3 Mechanic 7 | . . . 2 . . . 1 . . . . . . . . . . . 2 . . . 1 1 Operator 9 | . 2 . 2 . . . 2 . . . . . 2 . . . . . . . . . . 1 Turret 1 | . . . . . 1 . . . . . . . . . . . . . . . . . . . Watcher 18 | . 3 . 4 . . . 4 1 3 . . . . . . . . . 3 . . . . . Swarmer 76 | . . . 13 4 . 4 12 6 4 5 . 4 3 3 . . . 6 6 . . 2 . 4 Saboteur 6 | . . . . . . . . . . . . . . . . . . . . . . . 4 2 Grunt 219 | . 19 4 30 10 . 8 21 17 7 9 . 13 7 4 11 . . 8 8 . . 4 13 26 Brawler 28 | . . . 4 1 . . 2 3 . . . 1 1 . 1 . . . 2 . . . 8 5 Duelist 20 | . . . 3 1 . . 1 2 . 1 . 1 2 . . . . . 3 . . . 4 2 Protector 8 | . . . . . . . 1 . . . . . 2 . . . . . . . . . 1 4 Sentry 39 | . . . 7 . . . 2 4 2 3 . 5 1 . 1 . . 1 3 . . 3 5 2 Demolisher 1 | . . . . . . . . . . . . . . . . . . . . . 1 . . . Specialist 5 | . . . . . . . . . . 4 . . . . . . . . . . . . 1 . Hunter 13 | . . . . . . 1 1 . 1 1 . 1 . 1 . . . 1 . . . . 3 3 Programmer 22 | . . . . . . . . 6 . 3 . 4 1 . . . . . 3 . . . 2 3 Heavy 2 | . . . . . . . 1 . . . . . 1 . . . . . . . . . . . Behemoth 5 | . . . . . . . . 1 . . . 1 . . 1 . . 1 1 . . . . . Zionite 9 | . . . . 1 8 . . . . . . . . . . . . . . . . . . . Z-Technician 2 | . . . . . . . . . . . . . . . . . 2 . . . . . . . Z-Light 10 | . . . . . . . . . . . . . . . . . 10 . . . . . . . Assembler 2 | . . . . . . . . . . . . . . . . . 2 . . . . . . . Assembled 46 | . . . . 1 2 . . . . . . . . . . . 43 . . . . . . . Golem 9 | . . . . . . . . . . . . . . . . . 9 . . . . . . . Thug 7 | . . 3 1 1 . . . . . 1 . 1 . . . . . . . . . . . . Fireman 2 | . . . . . . . . . . . . . . . . . 2 . . . . . . . Best Kill Streak 41 | 4 5 2 9 5 5 10 16 5 15 8 . 4 7 4 4 . 41 7 9 . 2 2 9 17 Combat Bots Only 39 | . 3 2 9 4 2 10 9 5 12 8 . 4 5 4 4 . 39 7 5 . 1 2 8 15 Max Kills in Single Turn 12 | 1 1 1 3 2 2 2 2 3 2 2 . 2 3 3 2 . 12 2 4 . 1 2 3 8 Gunslinging 1 | . . . 1 1 . . 1 . . . . . . . 1 . . . . . . . 1 . Exploded 12 | . 1 . 3 . 1 . . . . . . . 3 3 . . 12 . 3 . . . . 5 Melee 1 | . . . . . . . . . . . . . . . . . . . . . . . . 1 Uniques/NPCs Destroyed 6 | . . . . . 4 1 . . . . . . . . . . 1 . . . . . . . 8R-AWN (-9/Exiles) EX-BIN (-9/Exiles) EX-DEC (-9/Exiles) EX-HEX (-9/Exiles) AD-0RF (-8/Mines) Z-Imprinter (-7/Deep Caves) Combat | -11 -10 -10 -9 -9 -9 -8 -8 -8 -8 -8 -8 -8 -7 -7 -7 -7 -7 -6 -6 -6 -6 -6 -6 -5 -------- Run | Jun Mat Min Mat Min Exi Min Mat Gar Mat Gar Mat Gar Fac Low Low Zio Dee Pro Fac Was Fac Gar Fac Fac Damage Taken 15023 | . 550 408 2529 340 824 734 649 515 460 940 . 631 175 78 325 . 666 356 834 . 3 284 1476 2246 Core 10228 | . 444 333 1848 276 636 372 341 407 362 750 . 507 127 54 222 . 340 213 530 . 1 194 898 1373 Absorbed by Shields 916 | . . . . . . . . 20 . . . 28 168 74 277 . 349 . . . . . . . Redirected to Core 8919 | . 349 236 1489 208 554 349 314 372 316 638 . 421 113 44 204 . 264 213 509 . 1 182 863 1280 Redirected to Shielding 204 | . . . . . . 10 194 . . . . . . . . . . . . . . . . . Core Remaining (%) 86 | 100 . 100 . . . 82 . . . . . 97 . . . . . 74 . . . . 66 . Volleys Fired 1644 | 14 170 37 271 44 48 45 94 128 47 86 . 101 60 10 43 4 129 31 87 1 6 34 61 93 Largest 5 | 2 2 2 3 3 3 2 2 4 3 2 . 2 4 2 2 1 4 4 5 3 3 3 3 5 Hottest 236 | 60 90 108 108 98 85 60 60 142 85 60 . 60 236 60 60 90 133 110 135 75 75 75 75 135 Shots Fired 3487 | 28 304 74 499 132 78 90 188 254 96 172 . 202 119 19 86 4 289 98 252 3 18 94 153 235 Gun 2629 | 28 298 69 427 131 76 90 188 246 96 172 . 202 115 18 86 . 133 36 38 . . . 60 120 Cannon 837 | . . 5 70 1 . . . 8 . . . . 1 . . 4 149 62 214 3 18 94 93 115 Launcher 21 | . 6 . 2 . 2 . . . . . . . 3 1 . . 7 . . . . . . . Special . | . . . . . . . . . . . . . . . . . . . . . . . . . Kinetic 2317 | 14 164 . 424 132 76 90 188 254 96 172 . 202 113 18 86 . 34 36 38 . . . 60 120 Thermal 774 | 14 . . . . . . . . . . . . 3 . . 4 154 62 214 3 18 94 93 115 Explosive 21 | . 6 . 2 . 2 . . . . . . . 3 1 . . 7 . . . . . . . Electromagnetic 281 | . 134 74 73 . . . . . . . . . . . . . . . . . . . . . Phasic 94 | . . . . . . . . . . . . . . . . . 94 . . . . . . . Robot Hit Streak 67 | 10 16 12 34 14 21 16 13 13 7 10 . 15 24 11 28 . 67 20 29 11 20 12 33 40 Robot Miss Streak 7 | 2 4 4 3 2 2 2 4 5 3 2 . 2 3 6 2 . 7 3 3 . . 1 2 3 Penetration Max 2 | . . . . . 2 1 2 2 2 1 . 2 2 1 1 . . . 1 . . . 2 2 Secondary Targets 42 | . 4 1 9 1 . 1 4 . 3 1 . 3 . . 2 . 1 . 1 . . . 7 4 Max Gunslinging Chain 1 | . 1 1 1 1 . 1 1 . 1 1 . 1 . . 1 . 1 . 1 . . . 1 1 Shots Hit Robots 1973 | 17 136 46 318 73 69 64 110 98 51 55 . 85 69 14 69 . 230 68 124 3 9 23 100 142 Core Hits 1107 | 9 55 20 109 31 33 34 79 72 37 37 . 49 59 14 32 . 190 25 60 1 3 14 56 88 Critical Kills 216 | . 1 . . . 5 18 31 28 16 23 . 17 12 5 9 . 3 4 5 . . . 15 24 Critical Parts Destroyed 268 | . . . 2 . 8 22 34 26 20 21 . 36 16 2 19 . 5 6 5 . . . 15 31 Critical Strikes 510 | . 1 1 2 . 16 42 66 55 37 44 . 54 28 7 28 . 16 11 14 . . . 30 58 Destroy 502 | . 1 . 2 . 14 42 66 55 37 44 . 54 28 7 28 . 11 11 14 . . . 30 58 Corrupt 1 | . . 1 . . . . . . . . . . . . . . . . . . . . . . Sever 2 | . . . . . 2 . . . . . . . . . . . . . . . . . . . Intensify 5 | . . . . . . . . . . . . . . . . . 5 . . . . . . . Melee Attacks 23 | . . . 6 . 16 . . . . . . . . . . 1 . . . . . . . . Impact . | . . . . . . . . . . . . . . . . . . . . . . . . . Slashing 22 | . . . 6 . 16 . . . . . . . . . . . . . . . . . . . Piercing 1 | . . . . . . . . . . . . . . . . 1 . . . . . . . . Sneak Attacks . | . . . . . . . . . . . . . . . . . . . . . . . . . Combat Hostiles . | . . . . . . . . . . . . . . . . . . . . . . . . . Follow-up Attacks 1 | . . . . . 1 . . . . . . . . . . . . . . . . . . . Damage Inflicted 65487 | 175 2039 949 6153 1365 1599 1354 3091 2668 1588 1618 . 2516 2399 386 1410 . 12418 2595 6582 141 417 1606 4350 8068 Guns 33656 | 175 1884 682 4853 1365 1116 1354 2996 2668 1511 1611 . 2516 1545 238 1410 . 3352 356 534 . . . 1232 2258 Cannons 22275 | . . 78 802 . . . . . . . . . . . . . 4796 2239 5021 141 417 1606 3118 4057 Explosions 9155 | . 155 189 496 . 91 . 95 . 77 . . . 854 148 . . 4270 . 1027 . . . . 1753 Melee 392 | . . . . . 392 . . . . . . . . . . . . . . . . . . . Ramming 9 | . . . 2 . . . . . . 7 . . . . . . . . . . . . . . Kinetic 28833 | 54 876 . 4805 1365 1116 1354 2996 2668 1511 1611 . 2516 1487 238 1410 . 446 356 534 . . . 1232 2258 Thermal 25658 | 121 129 189 83 . . . 95 . . . . . 58 . . . 6132 2239 5520 141 417 1606 3118 5810 Explosive 4991 | . . . 413 . 91 . . . . . . . 776 148 . . 3035 . 528 . . . . . Electromagnetic 2799 | . 1034 760 850 . . . . . 77 . . . 78 . . . . . . . . . . . Impact . | . . . . . . . . . . . . . . . . . . . . . . . . . Slashing 392 | . . . . . 392 . . . . . . . . . . . . . . . . . . . Piercing . | . . . . . . . . . . . . . . . . . . . . . . . . . Phasic 2805 | . . . . . . . . . . . . . . . . . 2805 . . . . . . . Highest Corruption 4 | . . 1 4 4 4 . . 2 . . . 1 1 . . . . . . . . . . 1 Average Corruption 2 | . . 1 3 4 3 . . 1 . . . 1 1 . . . . . . . . . . 1 Corruption Purged 10 | . . . . . 4 . . 4 . . . 1 1 . . . . . . . . . . . Corruption Blocked . | . . . . . . . . . . . . . . . . . . . . . . . . . Effects 139 | . . 7 68 34 22 . . 1 . . . . 1 . . . . . . . . . . 6 Message Errors 29 | . . 2 10 10 5 . . . . . . . . . . . . . . . . . . 2 Matter Fused 29 | . . 2 14 6 7 . . . . . . . . . . . . . . . . . . . Heat Flow Errors 12 | . . 1 5 3 1 . . . . . . . 1 . . . . . . . . . . 1 Energy Discharges 15 | . . 1 7 5 2 . . . . . . . . . . . . . . . . . . . Parts Rejected 5 | . . . 4 . 1 . . . . . . . . . . . . . . . . . . . Parts Fused 3 | . . . 2 . . . . . . . . . . . . . . . . . . . . 1 Data Loss (minor) 24 | . . . 12 6 4 . . 1 . . . . . . . . . . . . . . . 1 Data Loss (major) 6 | . . 1 3 . 2 . . . . . . . . . . . . . . . . . . . Misfires 8 | . . . 4 3 . . . . . . . . . . . . . . . . . . . 1 Alerts 1 | . . . 1 . . . . . . . . . . . . . . . . . . . . . Weapon Failures 7 | . . . 6 1 . . . . . . . . . . . . . . . . . . . . Overload Shots 4 | . . . . . . . . . . . . . . . . 4 . . . . . . . . Overflow Damage 2118 | . . 15 35 . . . 20 . . . . . . . . . 814 1 687 . 11 43 254 238 Projectiles 1246 | . . . 14 . . . . . . . . . . . . . 304 1 438 . 11 43 254 181 Explosions 872 | . . 15 21 . . . 20 . . . . . . . . . 510 . 249 . . . . 57 Melee . | . . . . . . . . . . . . . . . . . . . . . . . . . Knockbacks . | . . . . . . . . . . . . . . . . . . . . . . . . . Impact . | . . . . . . . . . . . . . . . . . . . . . . . . . Kinetic . | . . . . . . . . . . . . . . . . . . . . . . . . . Secondary . | . . . . . . . . . . . . . . . . . . . . . . . . . Self-Inflicted Damage 450 | . 96 57 20 . . . . . . 3 . . 79 . . . 191 . 4 . . . . . Shots 17 | . 3 2 1 . . . . . . . . . 3 . . . 7 . 1 . . . . . Rammed 2 | . . . 1 . . . . . . 1 . . . . . . . . . . . . . . Targets Rammed 2 | . . . 1 . . . . . . 1 . . . . . . . . . . . . . . Kicked . | . . . . . . . . . . . . . . . . . . . . . . . . . Crushed . | . . . . . . . . . . . . . . . . . . . . . . . . . Highest Temperature 439 | 40 173 261 439 220 223 276 160 139 10 33 . 170 374 42 68 90 301 24 269 . . 75 314 415 Average Temperature 53 | 21 50 69 67 52 21 65 54 39 3 9 . 58 79 19 30 50 74 9 54 . . 12 53 97 Received Heat Transfer 5805 | . 255 183 873 84 . 678 279 126 198 432 . 192 33 28 128 . 778 168 162 . . 60 342 806 Effects 10 | . . . 3 . . . . . . . . . 3 . . . . . 3 . . . 1 . Shutdowns 2 | . . . 1 . . . . . . . . . 1 . . . . . . . . . . . Energy Bleed 2 | . . . . . . . . . . . . . 1 . . . . . . . . . 1 . Interference 4 | . . . . . . . . . . . . . 1 . . . . . 3 . . . . . Short Circuit 1 | . . . 1 . . . . . . . . . . . . . . . . . . . . . Damage (minor) 1 | . . . 1 . . . . . . . . . . . . . . . . . . . . . Siege Activations . | . . . . . . . . . . . . . . . . . . . . . . . . . Robots Corrupted 1 | . . 1 . . . . . . . . . . . . . . . . . . . . . . Combat Hostiles . | . . . . . . . . . . . . . . . . . . . . . . . . . Parts Fried 19 | . 8 4 6 . . . . . 1 . . . . . . . . . . . . . . . Impact Corruptions . | . . . . . . . . . . . . . . . . . . . . . . . . . Robots Melted . | . . . . . . . . . . . . . . . . . . . . . . . . . Combat Hostiles . | . . . . . . . . . . . . . . . . . . . . . . . . . Parts Melted 14 | . . . . . . . . . . . . 1 . . . . . 3 5 . . 3 1 1 Heat Transferred 13479 | 275 100 350 150 . . . 50 . . . . . 74 . . . 2986 1225 3050 75 225 774 1349 2796 Parts Sabotaged 1 | . . . . . . . . . . . . . . . . . . . . . . . . 1 Parts Stolen . | . . . . . . . . . . . . . . . . . . . . . . . . . Parts Stripped . | . . . . . . . . . . . . . . . . . . . . . . . . . Power Chain Reactions 10 | . 3 4 1 . . . . . 1 . . . . . . . . . 1 . . . . . Missiles Intercepted . | . . . . . . . . . . . . . . . . . . . . . . . . . Alert | -11 -10 -10 -9 -9 -9 -8 -8 -8 -8 -8 -8 -8 -7 -7 -7 -7 -7 -6 -6 -6 -6 -6 -6 -5 ------- Run | Jun Mat Min Mat Min Exi Min Mat Gar Mat Gar Mat Gar Fac Low Low Zio Dee Pro Fac Was Fac Gar Fac Fac Peak Influence 2960 | 40 555 382 1608 960 . 350 874 2335 1318 2019 984 1981 1500 . . . . . 2144 750 978 2565 2894 2960 Initial 1417 | . 26 200 . 625 . . 81 566 1138 617 984 547 1039 . . . . . . 750 280 684 1346 1417 Average 958 | 21 310 184 687 760 . 242 633 1525 913 1441 877 1338 1134 . . . . . 982 617 578 2126 2081 1753 Maximum Alert Level 5 | . 2 1 5 3 . 1 3 5 4 5 3 5 4 . . . . . 5 3 3 5 5 5 Low Security (%) 13 | 100 33 59 15 . . 30 9 . . . . . . . . . . . 17 . . . . . Level 1 11 | . 31 40 18 . . 69 8 . 2 . . . . . . . . . . . 17 . . . Level 2 16 | . 34 . 22 21 . . 33 8 25 3 . 6 . . . . . . 20 56 48 2 . . Level 3 22 | . . . 20 78 . . 47 22 33 23 100 28 61 . . . . . 15 43 33 2 . . Level 4 16 | . . . 15 . . . . 19 38 24 . 27 38 . . . . . 26 . . 11 14 61 Level 5 16 | . . . 7 . . . . 49 . 48 . 37 . . . . . . 20 . . 83 7 . High Security 4 | . . . . . . . . . . . . . . . . . . . . . . . 78 38 Max Security . | . . . . . . . . . . . . . . . . . . . . . . . . . Sterilizations 1 | . . . 1 . . . . . . . . . . . . . . . . . . . . . Squads Dispatched 94 | . 5 1 17 1 . 1 8 . 4 . . . 7 . . . . . 8 . 4 . 20 18 Investigation 25 | . 4 1 8 1 . . 4 . 1 . . . 2 . . . . . . . 2 . 1 1 Extermination 4 | . . . . . . . . . . . . . 1 . . . . . 3 . . . . . Reinforcement 14 | . 1 . 4 . . 1 2 . 2 . . . 1 . . . . . . . 1 . 2 . Assault 46 | . . . 5 . . . 1 . . . . . 3 . . . . . 4 . . . 16 17 Garrison 5 | . . . . . . . 1 . 1 . . . . . . . . . 1 . 1 . 1 . Intercept . | . . . . . . . . . . . . . . . . . . . . . . . . . Searches Triggered . | . . . . . . . . . . . . . . . . . . . . . . . . . Construction Impeded 4 | . . . 2 . . 1 . . 1 . . . . . . . . . . . . . . . Haulers Reinforced . | . . . . . . . . . . . . . . . . . . . . . . . . . Active Scanning Responses . | . . . . . . . . . . . . . . . . . . . . . . . . . Cargo Convoy Interrupts . | . . . . . . . . . . . . . . . . . . . . . . . . . Stealth | -11 -10 -10 -9 -9 -9 -8 -8 -8 -8 -8 -8 -8 -7 -7 -7 -7 -7 -6 -6 -6 -6 -6 -6 -5 --------- Run | Jun Mat Min Mat Min Exi Min Mat Gar Mat Gar Mat Gar Fac Low Low Zio Dee Pro Fac Was Fac Gar Fac Fac Distress Signals 9 | . 1 . 1 . . . 1 1 4 . . . . . . . . . 1 . . . . . Communications Jammed 5 | . . . . . . . . . . . . . 5 . . . . . . . . . . . Distress Signals 5 | . . . . . . . . . . . . . 5 . . . . . . . . . . . Times Spotted 673 | . 32 3 87 16 22 15 47 39 22 29 . 28 22 7 14 . 65 14 35 2 3 21 68 82 Peak Tracking Total 37 | . 3 2 9 4 10 7 6 5 5 4 . 4 6 4 4 . 37 6 7 1 1 11 16 17 Tactical Retreats 48 | . 2 . 4 . 4 1 2 7 1 10 . 3 3 . . . 4 1 3 . . . . 3 Traps | -11 -10 -10 -9 -9 -9 -8 -8 -8 -8 -8 -8 -8 -7 -7 -7 -7 -7 -6 -6 -6 -6 -6 -6 -5 ------- Run | Jun Mat Min Mat Min Exi Min Mat Gar Mat Gar Mat Gar Fac Low Low Zio Dee Pro Fac Was Fac Gar Fac Fac Traps Triggered 22 | . . . 2 . . . . 3 . 7 . 3 1 . . . . . 2 . . 4 . . Indirectly 2 | . . . . . . . . . . . . . 1 . . . . . 1 . . . . . Trap Hack Attempts . | . . . . . . . . . . . . . . . . . . . . . . . . . Triggered . | . . . . . . . . . . . . . . . . . . . . . . . . . Disarmed . | . . . . . . . . . . . . . . . . . . . . . . . . . Reprogrammed 16 | . 8 . . . . . 8 . . . . . . . . . . . . . . . . . Reused 1 | . . . . . . . 1 . . . . . . . . . . . . . . . . . Traps Extracted . | . . . . . . . . . . . . . . . . . . . . . . . . . Installed . | . . . . . . . . . . . . . . . . . . . . . . . . . Triggered 3 | . . . 1 1 . . 1 . . . . . . . . . . . . . . . . . Exploded 3 | . . . . . 3 . . . . . . . . . . . . . . . . . . . Machines | -11 -10 -10 -9 -9 -9 -8 -8 -8 -8 -8 -8 -8 -7 -7 -7 -7 -7 -6 -6 -6 -6 -6 -6 -5 ---------- Run | Jun Mat Min Mat Min Exi Min Mat Gar Mat Gar Mat Gar Fac Low Low Zio Dee Pro Fac Was Fac Gar Fac Fac Machines Disabled 273 | . 22 4 45 2 13 . 10 17 6 10 . 12 12 . . 3 4 1 82 . . 6 3 21 Max in Single Turn 22 | . 3 1 4 1 2 . 2 2 2 1 . 2 2 . . 1 1 1 22 . . 1 1 14 Garrison Access 3 | . . . . . . . . . . . . . . . . . . . 1 . . . 2 . Garrison Relay 20 | . . . . . . . . 6 . 5 . 6 . . . . . . . . . 3 . . Machines Repaired 2 | . 1 . 1 . . . . . . . . . . . . . . . . . . . . . Machines Sabotaged . | . . . . . . . . . . . . . . . . . . . . . . . . . Overloaded Fab Kills . | . . . . . . . . . . . . . . . . . . . . . . . . . Hacking | -11 -10 -10 -9 -9 -9 -8 -8 -8 -8 -8 -8 -8 -7 -7 -7 -7 -7 -6 -6 -6 -6 -6 -6 -5 --------- Run | Jun Mat Min Mat Min Exi Min Mat Gar Mat Gar Mat Gar Fac Low Low Zio Dee Pro Fac Was Fac Gar Fac Fac Machines Accessed 77 | . 8 3 13 1 . . 7 3 6 4 2 4 10 . 1 1 . 1 3 . 4 1 2 3 Terminals 53 | . 6 1 10 . . . 6 3 4 4 1 4 5 . . . . 1 2 . 3 1 . 2 Fabricators 6 | . . . . . . . . . . . . . 3 . . . . . . . . . 2 1 Repair Stations . | . . . . . . . . . . . . . . . . . . . . . . . . . Recycling Units 7 | . 2 . 2 . . . . . 1 . . . 2 . . . . . . . . . . . Scanalyzers 2 | . . . 1 . . . . . . . . . . . . . . . 1 . . . . . Garrison Access 4 | . . . . . . . 1 . 1 . 1 . . . . . . . . . 1 . . . Total Hacks 325 | . 40 6 79 1 . . 35 9 36 12 9 13 32 . 1 6 . 4 7 . 15 2 7 11 Successful 197 | . 25 3 61 1 . . 16 4 23 7 5 5 14 . 1 6 . 4 5 . 11 . 3 3 Failed 126 | . 14 3 18 . . . 19 5 12 5 4 8 18 . . . . . 2 . 4 2 4 8 Catastrophic 12 | . 1 1 1 . . . 3 1 . 1 . . 3 . . . . . . . . 1 . . Database Lockouts 2 | . 1 . . . . . . . 1 . . . . . . . . . . . . . . . Manual 143 | . 20 2 40 . 1 . 20 4 12 7 7 1 16 . . . . . 3 . 1 . 7 2 Terminals 251 | . 32 4 62 . . . 34 9 31 12 8 13 12 . . . . 4 5 . 14 2 . 9 Fabricators 21 | . . . . . . . . . . . . . 12 . . . . . . . . . 7 2 Repair Stations . | . . . . . . . . . . . . . . . . . . . . . . . . . Recycling Units 32 | . 8 . 12 . . . . . 4 . . . 8 . . . . . . . . . . . Scanalyzers 7 | . . . 5 . . . . . . . . . . . . . . . 2 . . . . . Garrison Access 4 | . . . . . . . 1 . 1 . 1 . . . . . . . . . 1 . . . Terminal Hacks 126 | . 16 3 34 1 . . 13 3 17 4 3 4 3 . 1 6 . 4 2 . 9 . . 3 Record 11 | . . . 5 . . . . . 2 . . . . . . . . 4 . . . . . . Part Schematic 7 | . . . . . . . . . . . . . . . . 6 . . . . 1 . . . Robot Schematic 3 | . . . . . . . . . . . . . . . . . . . . . 2 . . 1 Robot Analysis 13 | . 3 . 6 . . . 1 . . . . . . . . . . . . . 3 . . . Prototype ID Bank 16 | . 5 . 4 . . . 1 . 2 . . . 1 . . . . . . . 2 . . 1 Open Door 7 | . . 2 . 1 . . . 1 . 1 . 1 . . 1 . . . . . . . . . Open DSF 1 | . . . . . . . . . . . . . . . . . . . 1 . . . . . Level Access Points 1 | . 1 . . . . . . . . . . . . . . . . . . . . . . . Branch Access Points 4 | . . . 2 . . . . . . . . . 1 . . . . . . . 1 . . . Emergency Access Points 7 | . . . 1 . . . 2 1 1 1 . 1 . . . . . . . . . . . . Machine Index 1 | . . . . . . . 1 . . . . . . . . . . . . . . . . . Terminal Index 2 | . . . 1 . . . . . . . . . . . . . . . 1 . . . . . Repair Station Index 1 | . . . 1 . . . . . . . . . . . . . . . . . . . . . Garrison Index 2 | . . . . . . . . . 1 . 1 . . . . . . . . . . . . . Alert Level 1 | . . . . . . . . . 1 . . . . . . . . . . . . . . . Unreport Threat 15 | . 1 . 4 . . . 3 . 6 . 1 . . . . . . . . . . . . . Reprogram Traps 6 | . 2 . 1 . . . 2 . 1 . . . . . . . . . . . . . . . Dispatch Records 2 | . . 1 1 . . . . . . . . . . . . . . . . . . . . . Maintenance Status 1 | . . . 1 . . . . . . . . . . . . . . . . . . . . . Investigation Status 1 | . . . 1 . . . . . . . . . . . . . . . . . . . . . Recall Investigation 1 | . . . 1 . . . . . . . . . . . . . . . . . . . . . Hauler Manifests 3 | . 1 . 1 . . . . . 1 . . . . . . . . . . . . . . . Registered Components 3 | . 1 . 1 . . . 1 . . . . . . . . . . . . . . . . . Registered Prototypes 1 | . . . . . . . . . 1 . . . . . . . . . . . . . . . Zone Layout 11 | . 2 . 3 . . . 2 . 1 . 1 . 1 . . . . . . . . . . 1 Garrison Registry 3 | . . . . . . . . 1 . 1 . 1 . . . . . . . . . . . . Patrol Navigation 2 | . . . . . . . . . . 1 . 1 . . . . . . . . . . . . Fabricator Hacks 5 | . . . . . . . . . . . . . 4 . . . . . . . . . 1 . Network Status 4 | . . . . . . . . . . . . . 3 . . . . . . . . . 1 . Build 1 | . . . . . . . . . . . . . 1 . . . . . . . . . . . Repair Station Hacks . | . . . . . . . . . . . . . . . . . . . . . . . . . Recycling Unit Hacks 6 | . 1 . 3 . . . . . . . . . 2 . . . . . . . . . . . Report Inventory 5 | . 1 . 2 . . . . . . . . . 2 . . . . . . . . . . . Retrieve Matter 1 | . . . 1 . . . . . . . . . . . . . . . . . . . . . Scanalyzer 7 | . . . 5 . . . . . . . . . . . . . . . 2 . . . . . Insert Component 4 | . . . 3 . . . . . . . . . . . . . . . 1 . . . . . Analyze 3 | . . . 2 . . . . . . . . . . . . . . . 1 . . . . . Garrison Access Hacks 4 | . . . . . . . 1 . 1 . 1 . . . . . . . . . 1 . . . Unlock Access 4 | . . . . . . . 1 . 1 . 1 . . . . . . . . . 1 . . . Unauthorized Hacks 49 | . 8 . 19 . . . 2 1 5 3 1 1 5 . . . . . 1 . 1 . 2 . Terminals 27 | . 3 . 12 . . . 2 1 2 3 1 1 . . . . . . 1 . 1 . . . Botnet 15 | . 2 . 5 . . . 2 . 2 1 1 . . . . . . . 1 . 1 . . . Detonate 1 | . . . 1 . . . . . . . . . . . . . . . . . . . . . Disrupt 1 | . . . 1 . . . . . . . . . . . . . . . . . . . . . Sabotage 2 | . 1 . 1 . . . . . . . . . . . . . . . . . . . . . Search 4 | . . . 4 . . . . . . . . . . . . . . . . . . . . . Override 4 | . . . . . . . . 1 . 2 . 1 . . . . . . . . . . . . Fabricators 5 | . . . . . . . . . . . . . 3 . . . . . . . . . 2 . Report 2 | . . . . . . . . . . . . . 1 . . . . . . . . . 1 . Fabnet 3 | . . . . . . . . . . . . . 2 . . . . . . . . . 1 . Repair Stations . | . . . . . . . . . . . . . . . . . . . . . . . . . Recycling Units 17 | . 5 . 7 . . . . . 3 . . . 2 . . . . . . . . . . . Monitor 2 | . 1 . 1 . . . . . . . . . . . . . . . . . . . . . Reject 5 | . 1 . 2 . . . . . 1 . . . 1 . . . . . . . . . . . Mask 5 | . 1 . 2 . . . . . 1 . . . 1 . . . . . . . . . . . Tunnel 5 | . 2 . 2 . . . . . 1 . . . . . . . . . . . . . . . Scanalyzers . | . . . . . . . . . . . . . . . . . . . . . . . . . Garrison Access . | . . . . . . . . . . . . . . . . . . . . . . . . . Data Cores Recovered 3 | . . . . . . . 1 . . . . . 1 . . . . . . . . . . 1 Used . | . . . . . . . . . . . . . . . . . . . . . . . . . Hacking Detections 57 | . 7 1 11 . . . 7 2 4 3 1 2 7 . . . . . 3 . 3 1 2 3 Full Trace Events 21 | . 3 1 3 . . . 5 1 . . . 1 2 . . . . . . . 2 1 1 1 Feedback Events 3 | . . 1 . . . . . . . . . . 1 . . . . . . . . . . 1 Corruption 3 | . . 1 . . . . . . . . . . 1 . . . . . . . . . . 1 Feedback Blocked . | . . . . . . . . . . . . . . . . . . . . . . . . . Robot Schematics Acquired 7 | . . . . . . . . . . . . . . . . 4 . . . . 2 . . 1 Robots Built . | . . . . . . . . . . . . . . . . . . . . . . . . . Authchips . | . . . . . . . . . . . . . . . . . . . . . . . . . Time . | . . . . . . . . . . . . . . . . . . . . . . . . . Total Robot Build Rating . | . . . . . . . . . . . . . . . . . . . . . . . . . Part Schematics Acquired 25 | . . . 2 . . . . . . . . . . . . 21 . . 1 . 1 . . . Parts Built 2 | . . . . . . . . . . . . . 2 . . . . . . . . . . . Authchips . | . . . . . . . . . . . . . . . . . . . . . . . . . Time 39 | . . . . . . . . . . . . . 39 . . . . . . . . . . . Total Part Build Rating 14 | . . . . . . . . . . . . . 14 . . . . . . . . . . . Parts Repaired . | . . . . . . . . . . . . . . . . . . . . . . . . . Time . | . . . . . . . . . . . . . . . . . . . . . . . . . Parts Recycled . | . . . . . . . . . . . . . . . . . . . . . . . . . Recycled Matter . | . . . . . . . . . . . . . . . . . . . . . . . . . Retrieved Matter 240 | . . . 240 . . . . . . . . . . . . . . . . . . . . . Retrieved Components . | . . . . . . . . . . . . . . . . . . . . . . . . . Parts Scanalyzed 3 | . . . 2 . . . . . . . . . . . . . . . 1 . . . . . Part Schematics Acquired 3 | . . . 2 . . . . . . . . . . . . . . . 1 . . . . . Parts Damaged . | . . . . . . . . . . . . . . . . . . . . . . . . . Bothacking | -11 -10 -10 -9 -9 -9 -8 -8 -8 -8 -8 -8 -8 -7 -7 -7 -7 -7 -6 -6 -6 -6 -6 -6 -5 ------------ Run | Jun Mat Min Mat Min Exi Min Mat Gar Mat Gar Mat Gar Fac Low Low Zio Dee Pro Fac Was Fac Gar Fac Fac Used RIF Installer . | . . . . . . . . . . . . . . . . . . . . . . . . . Robots Hacked 5 | . . . . . . . . . . . . . . . . . . . . . 1 2 2 . Non-combat . | . . . . . . . . . . . . . . . . . . . . . . . . . Combat 5 | . . . . . . . . . . . . . . . . . . . . . 1 2 2 . Robot Hacks Applied . | . . . . . . . . . . . . . . . . . . . . . . . . . Relay Couplers Released 38 | . . . . . . . . 12 . 9 . 10 . . . . . . 2 . . 4 1 . Machine Destruction 36 | . . . . . . . . 10 . 9 . 10 . . . . . . 2 . . 4 1 . Programmers 2 | . . . . . . . . 2 . . . . . . . . . . . . . . . . Fabnet Peak Effective % 6 | . . . . . . . . . . . . . . . . . . 6 6 6 6 6 6 2 Autooverrided 5 | . . . . . . . . . . . . . . . . . . . . . 1 2 2 . Robots Rewired 7 | . . . . . . . . 5 . . . 2 . . . . . . . . . . . . Allies Hacked . | . . . . . . . . . . . . . . . . . . . . . . . . . Hacks Repelled . | . . . . . . . . . . . . . . . . . . . . . . . . . Allies | -11 -10 -10 -9 -9 -9 -8 -8 -8 -8 -8 -8 -8 -7 -7 -7 -7 -7 -6 -6 -6 -6 -6 -6 -5 -------- Run | Jun Mat Min Mat Min Exi Min Mat Gar Mat Gar Mat Gar Fac Low Low Zio Dee Pro Fac Was Fac Gar Fac Fac Total Allies 47 | . . 4 . 2 . . . 7 . 1 . 2 . . . 4 . . . 20 1 4 2 . Largest Group 20 | . . 3 3 2 . . . 5 5 1 1 2 . . . 4 4 . . 20 20 18 10 . Highest-Rated Group 852 | . . 40 40 41 . . . 80 80 31 31 70 . . . 126 126 . . 852 836 782 449 . Highest-Rated Ally 90 | . . 31 16 31 . . . 31 16 31 31 39 . . . 39 39 . . 50 50 50 90 . Total Orders 1 | . . . . . . . . . . . . . . . . . . . . . . . . 1 EXPLORE 1 | . . . . . . . . . . . . . . . . . . . . . . . . 1 Ally Attacks 396 | . . . 15 . . . . 8 22 1 . 26 . . . . 61 . . 15 97 94 57 . Total Damage 10068 | . . . 193 . . . . 196 258 22 . 431 . . . . 503 . . 554 2284 3406 2221 . Kills 74 | . . . 1 . . . . 1 5 1 . 3 . . . . 4 . . 2 12 30 15 . Allies Corrupted 2 | . . . 1 . . . . . . . . . . . . . . . . . . . 1 . Allies Melted . | . . . . . . . . . . . . . . . . . . . . . . . . . Intel | -11 -10 -10 -9 -9 -9 -8 -8 -8 -8 -8 -8 -8 -7 -7 -7 -7 -7 -6 -6 -6 -6 -6 -6 -5 ------- Run | Jun Mat Min Mat Min Exi Min Mat Gar Mat Gar Mat Gar Fac Low Low Zio Dee Pro Fac Was Fac Gar Fac Fac Robot Analysis Total 12 | . 2 . 6 . . . 1 . . . . . . . . . . . . . 3 . . . Derelict Logs Recovered 10 | . . 2 . 2 . . . . . . . . . 2 1 1 . 2 . . . . . . Drone Launches 3 | . . . . . . . . . . . . . . . . . . . . . . . . 3 Drone Recoveries . | . . . . . . . . . . . . . . . . . . . . . . . . . Decoded 0b10 Intel 155 | . . . . . . . . . . . . . . . . . . . 48 23 9 25 19 31 Traps 13 | . . . . . . . . . . . . . . . . . . . 3 . . 5 3 2 Emergency Access 7 | . . . . . . . . . . . . . . . . . . . . . . 1 3 3 Items 117 | . . . . . . . . . . . . . . . . . . . 36 23 8 18 12 20 Machines 10 | . . . . . . . . . . . . . . . . . . . 6 . . 1 . 3 Patrols 1 | . . . . . . . . . . . . . . . . . . . . . . . . 1 Guards 7 | . . . . . . . . . . . . . . . . . . . 3 . 1 . 1 2 Exploration | -11 -10 -10 -9 -9 -9 -8 -8 -8 -8 -8 -8 -8 -7 -7 -7 -7 -7 -6 -6 -6 -6 -6 -6 -5 ------------- Run | Jun Mat Min Mat Min Exi Min Mat Gar Mat Gar Mat Gar Fac Low Low Zio Dee Pro Fac Was Fac Gar Fac Fac Turns Passed 34320 | 126 2599 1267 3804 1359 1214 533 694 1474 313 1415 32 1355 1248 503 2045 1476 4394 2476 1905 916 361 1118 633 1060 Spaces Moved 15489 | 19 1203 618 1550 814 867 151 348 680 134 766 23 761 651 307 1301 975 1476 993 623 313 136 372 148 260 Core 7 | . 3 . 3 1 . . . . . . . . . . . . . . . . . . . . Treads 4413 | . 583 618 1547 446 . . . . . . . . . . . . . . . 303 136 372 148 260 Legs 2695 | 18 . . . . . . . . . . . . . . . . 1051 993 623 10 . . . . Wheels 8372 | 1 617 . . 367 867 151 348 680 134 766 23 761 651 307 1301 975 423 . . . . . . . Hover 2 | . . . . . . . . . . . . . . . . . 2 . . . . . . . Flight . | . . . . . . . . . . . . . . . . . . . . . . . . . Fastest Speed 90 | 100 90 160 160 100 100 115 115 115 130 130 130 130 130 145 145 130 130 180 210 210 247 244 244 244 Average Speed 159 | 118 129 160 162 140 106 119 115 121 130 130 130 130 140 145 145 143 191 209 210 261 247 244 244 244 Slowest Speed 500 | 120 250 160 300 500 130 130 130 130 130 130 130 130 145 145 145 160 340 210 210 465 247 247 244 244 Overloaded Moves . | . . . . . . . . . . . . . . . . . . . . . . . . . Propulsion Burnouts . | . . . . . . . . . . . . . . . . . . . . . . . . . Robots Hopped . | . . . . . . . . . . . . . . . . . . . . . . . . . Cave-ins Triggered . | . . . . . . . . . . . . . . . . . . . . . . . . . Exploration Rate (%) 59 | 3 97 97 97 97 86 22 41 81 22 90 4 82 24 56 98 84 91 95 24 95 7 72 4 14 Regions Visited 24 Branch Regions 9 Pre-discovered Areas 14 | . 2 1 2 1 . . . . 1 . . . . 3 . 2 . 2 . . . . . . Known Exits Taken 7 | . . 1 1 . . . 1 . 1 . 1 . 1 . . . . . . . 1 . . . Unknown Exits Taken 11 | 1 1 . . 1 1 1 . . . . . . . 1 1 1 1 1 . . . . 1 . Scrap Searched 14 | . . 2 . 1 . . . . . . . . . 2 2 2 . 5 . . . . . . Spaces Dug 307 | . . . 1 . . . 1 5 60 9 . 4 39 . . . 8 2 123 . 6 25 11 13 Terrain Destroyed 1776 | . 125 39 297 11 22 56 103 44 97 57 . 42 74 18 22 . 70 15 529 . 9 37 37 72 Melee 1 | . . . 1 . . . . . . . . . . . . . . . . . . . . . Projectile 527 | . . . . 1 2 55 65 34 43 54 . 36 5 . 18 . 23 13 58 . 9 37 35 39 AOE 1201 | . 125 39 296 10 20 . 35 . 53 . . . 62 17 . . 47 . 470 . . . . 27 Terrain Rammed . | . . . . . . . . . . . . . . . . . . . . . . . . . Walls Destroyed . | . . . . . . . . . . . . . . . . . . . . . . . . . Machines Disabled . | . . . . . . . . . . . . . . . . . . . . . . . . . Actions | -11 -10 -10 -9 -9 -9 -8 -8 -8 -8 -8 -8 -8 -7 -7 -7 -7 -7 -6 -6 -6 -6 -6 -6 -5 --------- Run | Jun Mat Min Mat Min Exi Min Mat Gar Mat Gar Mat Gar Fac Low Low Zio Dee Pro Fac Was Fac Gar Fac Fac Total 22596 | 95 1948 824 2415 980 1101 426 524 1173 214 1077 25 1001 906 352 1406 1052 2880 1317 1030 411 147 511 291 490 Wait 4103 | 58 505 132 429 76 67 176 21 222 11 130 2 80 175 28 46 23 1136 281 269 70 5 43 30 88 Move 15467 | 18 1202 617 1549 813 866 150 348 679 134 765 23 758 650 306 1300 974 1475 992 623 312 136 370 147 260 Hop . | . . . . . . . . . . . . . . . . . . . . . . . . . Pick Up 97 | . 4 5 11 5 24 . 4 . . . . . . . . 15 12 2 3 6 . 3 1 2 Fast Attach 134 | 4 16 2 16 3 12 13 2 12 1 1 . 4 6 1 . 2 27 . 6 2 . 2 . 2 Attach 54 | . . 2 2 2 11 . 4 3 . . . . . . . 13 3 3 4 3 . 2 . 2 Detach 39 | . 1 . 2 1 9 3 1 3 . . . . 1 . . 4 7 1 1 3 . 2 . . Swap 25 | . 6 . 8 2 4 1 . 1 . . . . . . . . 2 . . . . 1 . . Drop 196 | 1 16 6 16 8 33 10 4 10 1 1 . 4 4 1 . 16 44 2 7 5 . 3 . 4 Fire 1644 | 14 170 37 271 44 48 45 94 128 47 86 . 101 60 10 43 4 129 31 87 1 6 34 61 93 Melee 22 | . . . 6 . 15 . . . . . . . . . . 1 . . . . . . . . Ram 1 | . . . . . . . . . . 1 . . . . . . . . . . . . . . Kick . | . . . . . . . . . . . . . . . . . . . . . . . . . Crush 1 | . . . 1 . . . . . . . . . . . . . . . . . . . . . Escape Stasis 91 | . . . . . . . . 23 . 48 . 16 . . . . . . . . . 4 . . Rewire 31 | . . . . . . . . 26 . . . 5 . . . . . . . . . . . . Trap . | . . . . . . . . . . . . . . . . . . . . . . . . . Miscellaneous 691 | . 28 23 104 26 12 28 46 66 20 45 . 33 10 6 17 . 45 5 30 9 . 47 52 39 Route ------- -11/Junkyard -10/Materials (discovered 4 exits: *Mat x3 / *Min) -10/Mines (discovered 2 exits: *Mat x2) -9/Materials (discovered 4 exits: *Mat x3 / *Min) -9/Mines (discovered 3 exits: *Mat x2 / *Exi) -9/Exiles -8/Mines -8/Materials (discovered 4 exits: *Fac x2 / Sto / Gar) -8/Garrison (discovered 3 exits: *Mat x3) -8/Materials (discovered 3 exits: *Fac / *Sto / Gar) -8/Garrison (discovered 3 exits: *Mat x3) -8/Materials -8/Garrison (discovered 3 exits: *Fac x3) -7/Factory (discovered 2 exits: *Low x2) -7/Lower Caves -7/Lower Caves (discovered 2 exits: *Fac / *Zio) -7/Zion (discovered 2 exits: [*Dee] / [*Pro]) -7/Deep Caves -6/Proximity Caves -6/Factory (discovered 2 exits: *Fac / Low) -6/Waste -6/Factory (discovered 4 exits: Fac / Low x2 / Gar) -6/Garrison (discovered 3 exits: *Fac x3) -6/Factory -5/Factory (discovered 1 exit: [*Upp]) History --------- Turn | Location | Event 6 | -11/Junkyard | Upgraded with Utility slot (x3) 6 | -11/Junkyard | Upgraded with Weapon slot (x1) 58 | -11/Junkyard | Discovered new exit (range 2) 127 | -11/Junkyard | Entered Materials 313 | -10/Materials | Build established: Mutant 638 | -10/Materials | Discovered new exit (range 16) 892 | -10/Materials | Build established: Scavenger-Skirmisher 1007 | -10/Materials | Reached level 2 1192 | -10/Materials | Central database locked down 1207 | -10/Materials | Discovered new exit (range 14) 1226 | -10/Materials | Identified exit to Materials 1322 | -10/Materials | Build established: Hacker-Skirmisher 1401 | -10/Materials | Reached level 3 1418 | -10/Materials | Upgraded with Utility slot (x1) 2179 | -10/Materials | Reached level 4 2188 | -10/Materials | Upgraded with Propulsion slot (x1) 2726 | -10/Materials | Entered Mines 2755 | -10/Mines | Build established: Hacker-Mutant 2762 | -10/Mines | Met a Derelict bent on vengeance 2924 | -10/Mines | Discovered exit to Materials (range 9) 3255 | -10/Mines | Received a Mining Laser from a helpful Derelict 3457 | -10/Mines | Met a Derelict who couldn't figure out how to use a Trap Extractor 3531 | -10/Mines | Assisted by bots powering up and referring to "LRC-V3" 3540 | -10/Mines | Learned Materials emergency access door positions 3829 | -10/Mines | Reached level 5 3875 | -10/Mines | Upgraded with Utility slot (x1) 3876 | -10/Mines | Found the Drone Emporium 3887 | -10/Mines | Found Prototype Device 3963 | -10/Mines | Discovered exit to Materials (range 16) 3993 | -10/Mines | Entered Materials 3993 | -9/Materials | Accompanied by 3 allies 3995 | -9/Materials | Reached level 6 4372 | -9/Materials | Discovered new exit (range 9) 4586 | -9/Materials | Reached level 7 4768 | -9/Materials | Identified Sensor Drone Bay 4987 | -9/Materials | Identified exit to Mines 5231 | -9/Materials | Reached level 8 5233 | -9/Materials | Upgraded with Utility slot (x1) 5334 | -9/Materials | Discovered new exit (range 8) 5539 | -9/Materials | Core integrity fell below 50% 5573 | -9/Materials | Core integrity fell below 20% 5707 | -9/Materials | Reached level 9 5983 | -9/Materials | Discovered new exit (range 3) 6393 | -9/Materials | First assault squad dispatched 6479 | -9/Materials | Reached level 10 6514 | -9/Materials | Destroyed 8 combat bots 6568 | -9/Materials | Upgraded with Power slot (x1) 6568 | -9/Materials | Upgraded with Weapon slot (x1) 7352 | -9/Materials | Sterilization system engaged 7352 | -9/Materials | Non-combat units ordered to evacuate 7360 | -9/Materials | Destroyed 9 combat bots 7452 | -9/Materials | Combat units ordered to evacuate 7652 | -9/Materials | Ambient heat levels rising (+10) 7797 | -9/Materials | Entered Mines 7803 | -9/Mines | Reached level 11 7920 | -9/Mines | Met a Derelict shopkeep closing up shop 7985 | -9/Mines | Excavation squad dispatched 7985 | -9/Mines | A large section of the Mines collapsed 8059 | -9/Mines | Discovered new exit (range 4) 8097 | -9/Mines | Build established: Hacker-Gunner 8200 | -9/Mines | Received a Rocket Launcher from a helpful Derelict 8314 | -9/Mines | Learned location of 1 exit from Materials 8439 | -9/Mines | Discovered new exit (range 9) 8449 | -9/Mines | Learned location of Storage (-8) 8702 | -9/Mines | Learned Materials emergency access door positions 9152 | -9/Mines | Deemed a non-threat by the Exiles lab entrance 9152 | -9/Mines | Discovered new exit (range 5) 9156 | -9/Mines | Entered Exiles 9206 | -9/Exiles | Met 8R-AWN 9223 | -9/Exiles | Met EX-HEX 9253 | -9/Exiles | Met EX-BIN 9264 | -9/Exiles | Aligned with FarCom system 9265 | -9/Exiles | Given EX-Vault access code 9400 | -9/Exiles | Met EX-DEC 9457 | -9/Exiles | Build established: Hacker-Mutant 9628 | -9/Exiles | Opened EX-Vault 9634 | -9/Exiles | Found Prototype Energy Gun 9641 | -9/Exiles | Found Prototype Processor 9665 | -9/Exiles | Warned to stay clear of 0b10 Research branches 9790 | -9/Exiles | Attacked by the Exiles 9903 | -9/Exiles | Found Prototype Ballistic Gun 9961 | -9/Exiles | Destroyed 8R-AWN 9965 | -9/Exiles | Found Prototype Processor 9965 | -9/Exiles | Identified Exp. Targeting Computer 9976 | -9/Exiles | Found Prototype Protection 9976 | -9/Exiles | Identified 8R-AWN's Armor/EX 9981 | -9/Exiles | Found Prototype Protection 9981 | -9/Exiles | Identified 8R-AWN's Armor/TH 9994 | -9/Exiles | Found Prototype Device 9994 | -9/Exiles | Identified AS-neutralizer No. 17b 10008 | -9/Exiles | Identified 8R-AWN's Boregun 10009 | -9/Exiles | Found 8R-AWN's Boregun 10118 | -9/Exiles | Destroyed EX-BIN 10147 | -9/Exiles | Destroyed EX-DEC 10177 | -9/Exiles | Found Prototype Device 10177 | -9/Exiles | Identified System Purifier 10190 | -9/Exiles | Found Prototype Processor 10190 | -9/Exiles | Identified Exp. Core Analyzer 10194 | -9/Exiles | Destroyed EX-HEX 10355 | -9/Exiles | Discovered new exit (range 14) 10369 | -9/Exiles | Build established: Scavenger-Mutant 10370 | -9/Exiles | Entered Mines 10444 | -8/Mines | Reached level 12 10465 | -8/Mines | AD-0RF came to Exiles' defense 10468 | -8/Mines | Destroyed 10 combat bots 10499 | -8/Mines | Destroyed AD-0RF 10561 | -8/Mines | Found Prototype Device 10561 | -8/Mines | Identified Exp. Thermal Shield 10577 | -8/Mines | Found Exp. Targeting Computer 10881 | -8/Mines | Discovered new exit (range 13) 10903 | -8/Mines | Entered Materials 10904 | -8/Materials | Identified exit to Storage 11018 | -8/Materials | Reached level 13 11067 | -8/Materials | Destroyed 8 combat bots 11129 | -8/Materials | Discovered new exit (range 3) 11303 | -8/Materials | First assault squad dispatched 11438 | -8/Materials | Discovered new exit (range 15) 11443 | -8/Materials | Destroyed 9 combat bots 11456 | -8/Materials | Identified exit to Factory 11509 | -8/Materials | Garrison activated, responded to threat 11531 | -8/Materials | Reached level 14 11565 | -8/Materials | Destroyed 8 combat bots 11597 | -8/Materials | Identified exit to Garrison 11597 | -8/Materials | Entered Garrison 11630 | -8/Garrison | Triggered checkpoint 11716 | -8/Garrison | Triggered checkpoint 11737 | -8/Garrison | Garrison Relay disabled 11842 | -8/Garrison | Triggered checkpoint 11930 | -8/Garrison | Triggered checkpoint 11989 | -8/Garrison | Discovered new exit (range 12) 11994 | -8/Garrison | Discovered new exit (range 16) 11994 | -8/Garrison | Discovered new exit (range 46) 11994 | -8/Garrison | Discovered new exit (range 57) 11994 | -8/Garrison | Identified exit to Materials 12016 | -8/Garrison | Triggered checkpoint 12064 | -8/Garrison | Garrison Relay disabled 12212 | -8/Garrison | Triggered checkpoint 12212 | -8/Garrison | Upgraded with Utility slot (x1) 12397 | -8/Garrison | Rescued a captive Derelict 12399 | -8/Garrison | Rescued a captive Derelict 12421 | -8/Garrison | Reached level 15 12422 | -8/Garrison | Triggered checkpoint 12518 | -8/Garrison | Spotted B-75 Beast 12544 | -8/Garrison | Destroyed B-75 Beast 12553 | -8/Garrison | Upgraded with Weapon slot (x1) 12554 | -8/Garrison | Upgraded with Power slot (x1) 12746 | -8/Garrison | Garrison Relay disabled 13071 | -8/Garrison | Entered Materials 13071 | -8/Materials | Accompanied by 5 allies 13071 | -8/Materials | Discovered exit to Storage (range 6) 13212 | -8/Materials | Central database locked down 13317 | -8/Materials | Garrison activated, responded to threat 13368 | -8/Materials | Discovered exit to Factory (range 13) 13371 | -8/Materials | Destroyed 12 combat bots 13384 | -8/Materials | Identified exit to Garrison 13384 | -8/Materials | Entered Garrison 13397 | -8/Garrison | Triggered checkpoint 13432 | -8/Garrison | Garrison Relay disabled 13451 | -8/Garrison | Identified exit to Materials 13810 | -8/Garrison | Triggered checkpoint 13821 | -8/Garrison | Destroyed 8 combat bots 13857 | -8/Garrison | Triggered checkpoint 13913 | -8/Garrison | Triggered checkpoint 13979 | -8/Garrison | Garrison Relay disabled 14076 | -8/Garrison | Triggered checkpoint 14245 | -8/Garrison | Core integrity fell below 50% 14363 | -8/Garrison | Garrison Relay disabled 14363 | -8/Garrison | Reached level 16 14507 | -8/Garrison | Triggered checkpoint 14544 | -8/Garrison | Rescued a captive Derelict 14597 | -8/Garrison | Discovered exit to Materials (range 75) 14597 | -8/Garrison | Discovered exit to Materials (range 51) 14597 | -8/Garrison | Discovered exit to Materials (range 6) 14799 | -8/Garrison | Entered Materials 14799 | -8/Materials | Accompanied by 1 ally 14831 | -8/Materials | Identified exit to Garrison 14831 | -8/Materials | Entered Garrison 14831 | -8/Garrison | Accompanied by 1 ally 14894 | -8/Garrison | Triggered checkpoint 14909 | -8/Garrison | Garrison Relay disabled 14909 | -8/Garrison | Garrison Relay disabled 15212 | -8/Garrison | Triggered checkpoint 15302 | -8/Garrison | Garrison Relay disabled 15445 | -8/Garrison | Triggered checkpoint 15514 | -8/Garrison | Discovered exit to Factory (range 12) 15524 | -8/Garrison | Discovered exit to Factory (range 12) 15524 | -8/Garrison | Discovered exit to Factory (range 45) 15524 | -8/Garrison | Discovered exit to Factory (range 49) 15580 | -8/Garrison | Triggered checkpoint 15676 | -8/Garrison | Spotted B-75 Beast 15686 | -8/Garrison | Destroyed B-75 Beast 15897 | -8/Garrison | Triggered checkpoint 15989 | -8/Garrison | Attempted to access garrison exit controls, blocked by remote lockdown 15992 | -8/Garrison | Build established: Hacker-Mutant 16186 | -8/Garrison | Entered Factory 16337 | -7/Factory | Fabricated Dispersion Rifle (x2) 16820 | -7/Factory | Build established: Scavenger-Mutant 16842 | -7/Factory | Reached level 17 16844 | -7/Factory | Found Rocket Array 16986 | -7/Factory | First assault squad dispatched 17270 | -7/Factory | Discovered new exit (range 16) 17394 | -7/Factory | Identified exit to Lower Caves 17434 | -7/Factory | Entered Lower Caves 17440 | -7/Lower Caves | Met a Warlord Commander 17441 | -7/Lower Caves | Learned location of Warlord (-5) 17445 | -7/Lower Caves | Found Encrypted Comm Array 17544 | -7/Lower Caves | Encountered a Warlord checkpoint 17876 | -7/Lower Caves | Discovered new exit (range 13) 17937 | -7/Lower Caves | Entered another Lower Caves area 17982 | -7/Lower Caves | Attracted the attention of an 0b10 checkpoint 18164 | -7/Lower Caves | Spotted B-75 Beast 18199 | -7/Lower Caves | Destroyed B-75 Beast 18266 | -7/Lower Caves | Encountered a Warlord checkpoint 18545 | -7/Lower Caves | Discovered new exit (range 9) 19429 | -7/Lower Caves | Learned location of 1 exit from Factory 19575 | -7/Lower Caves | Discovered new exit (range 11) 19982 | -7/Lower Caves | Entered Zion 19984 | -7/Zion | Reached level 18 19988 | -7/Zion | Upgraded with Utility slot (x1) 20016 | -7/Zion | Gained Derelict followers 20069 | -7/Zion | Acquired unknown access codes intercepted by a Zionite 20080 | -7/Zion | Discovered new exit (range 15) 20124 | -7/Zion | Found CR-A16's Pointy Stick 20399 | -7/Zion | Found Prototype Hackware 20400 | -7/Zion | Identified Exp. System Shield 20404 | -7/Zion | Found Prototype Processor 20405 | -7/Zion | Identified Exp. Armor Integrity Analyzer 20419 | -7/Zion | Found Exp. Targeting Computer 20590 | -7/Zion | Learned Factory emergency access door positions 20706 | -7/Zion | Build established: Hacker-Mutant 21197 | -7/Zion | Found Prototype Energy Gun 21446 | -7/Zion | Discovered new exit (range 3) 21446 | -7/Zion | Saw the warning signs outside the Deep Caves entrance 21458 | -7/Zion | Entered Deep Caves 21458 | -7/Deep Caves | Accompanied by 4 allies 21611 | -7/Deep Caves | Z-Facility disabled 21671 | -7/Deep Caves | Attacked by Z-Imprinter 21682 | -7/Deep Caves | Destroyed Z-Imprinter 21719 | -7/Deep Caves | Found Prototype Protection 21719 | -7/Deep Caves | Identified Zio. Weapon Casing 21728 | -7/Deep Caves | Found Prototype Device 21728 | -7/Deep Caves | Identified Zio. Metafield Generator 21749 | -7/Deep Caves | Build established: Scavenger-Mutant 21798 | -7/Deep Caves | Found Zio. Weapon Casing 21918 | -7/Deep Caves | Found Prototype Protection 21918 | -7/Deep Caves | Identified Zio. Heavy Carapace 22266 | -7/Deep Caves | Spotted as-07246 22419 | -7/Deep Caves | Destroyed as-07246 22427 | -7/Deep Caves | Found GOLEM Unit 23073 | -7/Deep Caves | Build established: Hacker-Golem 23190 | -7/Deep Caves | Triggered Deep Caves wall 23205 | -7/Deep Caves | Spotted AS-72561 23206 | -7/Deep Caves | Spotted AS-85555 23209 | -7/Deep Caves | Destroyed AS-72561 23217 | -7/Deep Caves | Destroyed AS-85555 23223 | -7/Deep Caves | Exposed GOLEM chamber 23230 | -7/Deep Caves | Spotted as-50230 23260 | -7/Deep Caves | Found GOLEM Unit 23264 | -7/Deep Caves | Destroyed 39 combat bots 23352 | -7/Deep Caves | Destroyed as-50230 23372 | -7/Deep Caves | Found GOLEM Unit 23516 | -7/Deep Caves | Found Prototype Storage 23516 | -7/Deep Caves | Identified Superbattery 23755 | -7/Deep Caves | Build established: Hacker-Gunner 24658 | -7/Deep Caves | Found GOLEM Unit 24929 | -7/Deep Caves | Build established: Hacker-Mutant 25254 | -7/Deep Caves | Found Surveybot 24 Scanner 25328 | -7/Deep Caves | Found Surveybot 24 Chip 25763 | -7/Deep Caves | Discovered new exit (range 11) 25852 | -7/Deep Caves | Entered Proximity Caves 26202 | -6/Proximity Caves | Attracted the attention of an 0b10 base 26255 | -6/Proximity Caves | Destroyed 7 combat bots 26274 | -6/Proximity Caves | Learned location of Extension (-4) 26274 | -6/Proximity Caves | Learned Extension trap positions 26274 | -6/Proximity Caves | Learned Armory stockpile data 26489 | -6/Proximity Caves | Reached level 19 26510 | -6/Proximity Caves | Upgraded with Power slot (x1) 26946 | -6/Proximity Caves | Spotted B-75 Beast 26970 | -6/Proximity Caves | Destroyed B-75 Beast 26990 | -6/Proximity Caves | Build established: Generator-Golem 27016 | -6/Proximity Caves | Discovered new exit (range 19) 27577 | -6/Proximity Caves | Received a Behemoth hack from an annoying Tinkerer 28328 | -6/Proximity Caves | Entered Factory 28329 | -6/Factory | Identified exit to Lower Caves 28684 | -6/Factory | Reached level 20 28742 | -6/Factory | Upgraded with Weapon slot (x1) 29326 | -6/Factory | Spotted B-75 Beast 29336 | -6/Factory | Destroyed B-75 Beast 29728 | -6/Factory | First assault squad dispatched 30036 | -6/Factory | Reached level 21 30068 | -6/Factory | Discovered new exit (range 16) 30099 | -6/Factory | Garrison activated, responded to threat 30196 | -6/Factory | Upgraded with Propulsion slot (x1) 30233 | -6/Factory | Sucked down chute 30233 | -6/Factory | Entered Waste 30234 | -6/Waste | Joined by Warlord forces that had cleared the area 30399 | -6/Waste | Found Unknown Protection 30695 | -6/Waste | Build established: Generator-Gunner 30716 | -6/Waste | Discovered new exit (range 13) 30891 | -6/Waste | Found Broken Antimissile System 31149 | -6/Waste | Entered Factory 31149 | -6/Factory | Accompanied by 19 allies 31197 | -6/Factory | Discovered new exit (range 21) 31477 | -6/Factory | Garrison activated, responded to threat 31510 | -6/Factory | Identified exit to Garrison 31510 | -6/Factory | Entered Garrison 31510 | -6/Garrison | Accompanied by 18 allies 31561 | -6/Garrison | Triggered checkpoint 31570 | -6/Garrison | Reached level 22 31678 | -6/Garrison | Triggered checkpoint 31690 | -6/Garrison | Triggered checkpoint 31690 | -6/Garrison | Triggered checkpoint 31691 | -6/Garrison | Local machine network offline 31788 | -6/Garrison | Rescued a captive Derelict 31789 | -6/Garrison | Rescued a captive Derelict 31816 | -6/Garrison | Upgraded with Propulsion slot (x1) 31867 | -6/Garrison | Discovered new exit (range 8) 31890 | -6/Garrison | Triggered checkpoint 31917 | -6/Garrison | Garrison Relay disabled 31978 | -6/Garrison | Triggered checkpoint 32041 | -6/Garrison | Garrison Relay disabled 32046 | -6/Garrison | Identified Damper Plating 32105 | -6/Garrison | Discovered new exit (range 10) 32314 | -6/Garrison | Discovered new exit (range 9) 32338 | -6/Garrison | Triggered checkpoint 32384 | -6/Garrison | Garrison Relay disabled 32482 | -6/Garrison | Attempted to access garrison exit controls, blocked by remote lockdown 32628 | -6/Garrison | Entered Factory 32628 | -6/Factory | Accompanied by 10 allies 32766 | -6/Factory | High security lockdown imminent 32846 | -6/Factory | High security lockdown engaged 32876 | -6/Factory | Discovered new exit (range 15) 32931 | -6/Factory | Garrison activated, responded to threat 33078 | -6/Factory | Destroyed 7 combat bots 33168 | -6/Factory | Reached level 23 33199 | -6/Factory | Destroyed 8 combat bots 33261 | -6/Factory | Entered another Factory area 33561 | -5/Factory | First assault squad dispatched 33654 | -5/Factory | Discovered new exit (range 22) 33917 | -5/Factory | High security lockdown imminent 33997 | -5/Factory | High security lockdown engaged 34070 | -5/Factory | Reached level 24 34072 | -5/Factory | Upgraded with Utility slot (x1) 34089 | -5/Factory | Core integrity fell below 50% 34115 | -5/Factory | Core integrity fell below 20% 34166 | -5/Factory | Destroyed 13 combat bots 34213 | -5/Factory | Destroyed 8 combat bots 34321 | -5/Factory | Self-destructed Last Messages --------------- 34313_ G-67 Veteran suffers critical hit (Destroy). 34313_ G-67 Veteran destroyed. 34313_ B-60 Warrior suffers critical hit (Destroy). 34313_ Destroyed Imp. Treads. 34313_ HV Slug penetrates P-70 Sage. 34313_ P-70 Sage suffers critical hit (Destroy). 34313_ Destroyed Hpw. Shock Rifle. 34313_ HV Slug penetrates B-60 Warrior. 34313_ B-60 Warrior suffers critical hit (Destroy). 34313_ C-30 ARC bursts open, deploying its payload. 34313_ H-66 Slayer unfolds itself. 34313_ P-70 Sage unfolds itself. 34313_ E-15 Imp unfolds itself. 34313_ Penetrated by Slug. 34314_ E-15 Imp destroyed. 34314_ Slug penetrates Wall. 34319_ Penetrated by Slug. 34319_ Slug penetrates Wall. 34319_ P-70 Sage resets G-50 Soldier, system corruption cleaned. 34321_ G-50 Soldier IFF system glitched. Map ----- +----------------------------------------------------+ | ?????????????????????????????????????????????????? | | ?????????????????????????????????????????????????? | | ?????????????????????????????????????????????????? | | ?????????????????????????? ?????????????????????? | | ?????????????????? ??""?""""" ? ? ???????????????? | | ?????????????????? ? ###? ????????? | | ???????????????? ? ? !// #####????? ????? | | ??????????"???"" ! ##### ?#???? | | ???????????"?""" / ##### #??? | | ?????????????""" ? ################### ###? | | ??????????? ################### ###? | | ??????? ?? """ # ###### #### | | ??????? ??? """ # """ """ ###### #### | | ???????? """ # """ """ ###### #### | | ??????? + ! """ """ ###### #### | | ????"??""? # ; #### ######### | | ???????""" ###"##### ;# # ######### | | ???????######## ######### | | ????########### ######### | | ?????########## ######### | | ???#?######?### ""####### | | ????######?#### T"##?#### | | ????############# ######?% ""####### | | ????############# ### ## [ph% !* ######### | | ???? ##########+########=%%%=%% ######### | | ????"" #?####### ==!%=%@%*[!%[ ######### | | ????T" ######### """!!m[%gb!==% ![[ ######### | | ??? "" ######### "R*|"""g%p%!*=! ==%*[%!!;######## | | ???? ##?###### """%"""=#%!*[=! !%=%=!%*######### | | ???""" # + "" """=##m=!*!*/=*=***!;######## | | ??? ######### =*%!#%*%[=/%%%%g*%[!"######## | | ????"" ####?#### =!=##*%###;###%l%!%######### | | ??? ######### ! ! %%#%%#########/;##!######## | | ????"" ##################"#%##### %%!! *##### | | ??? #################*##=##### """%= [=%"### | | ????#######################=##### """! [##### | | ?? ? [[%! # "" [ ! ##### | | ???#?#################### !=[ # """ ##### | | ?? ???################### *%[ # ! === ##### | | ?????? ############## =[= + [ == ##### | | ???? ??"" ############## [=! # == ] ##### | | ???? ?""" ############## [ # """ ##### | | ????????" ############## # "R ! ##### | | ????????" ############## # """ * ##### | | ???????"" ############## # ##### | | ?????"?"?? ##?########### #####"############ | | ???????????############## # ### # ########## | | ?????? ? ############## ##### ############ | | ?????????? ############## ################## | | ???????? ?# ? # ##### ############ | +----------------------------------------------------+ Best States ------------- Heat Dissipation 127 Coolant Potential 120 Energy Generation 85 Energy Capacity 2600 Matter Stores 300 Matter Capacity 300 Sight Range 18 Robot Scan Range 6 Terrain Scan Range 24 Terrain Scan Density 2110 Jamming Range 14 Additional Mass Support 12 EM Shielding 3 Armor Coverage 1950 Resistance: KI 30 Resistance: TH 90 Resistance: EX 90 Resistance: EM 90 Resistance: I 15 Resistance: S 15 Resistance: P 15 Weapon Shielding 100 Point Defense Rating 240 Weapon Cycling 25 Phase Shifting 15 Evasion (%) 55 Targeting Accuracy 24 Core Analysis 8 Armor Integrity Analysis 50 Recoil Reduction 4 Matter Filtering 30 Particle Charging 20 Kinecelleration 40 Salvage Targeting 5 Offensive Hacking 26 Defensive Hacking 26 Item Schematics ----------------- Enh. Autogun | -9/Materials | Scanalyzed Imp. Treads | -9/Materials | Scanalyzed Mak. System Shield | -7/Zion | Archive Matter Compressor | -7/Zion | Archive Adv. ECM Suite | -7/Zion | Archive Hvy. Flak Cannon | -7/Zion | Archive System Restoration Module | -7/Zion | Archive Lgt. Angular Momentum Engine | -7/Zion | Archive Gravmag System | -7/Zion | Archive KE Penetrator | -7/Zion | Archive Antigrav System | -7/Zion | Archive Component Analysis Suite | -7/Zion | Archive Coil Gun | -7/Zion | Archive Hvy. Rocket Launcher | -7/Zion | Archive Hyp. Gauss Rifle | -7/Zion | Archive Plasma Flamer | -7/Zion | Archive Weapon Cycler | -7/Zion | Archive Riot Gun | -7/Zion | Free Hvy. Riot Gun | -7/Zion | Free Battle Rifle | -7/Zion | Free Hvy. Battle Rifle | -7/Zion | Free Battle Cannon | -7/Zion | Free Tactical Coordination Suite | -7/Zion | Free Adv. Phase Shifter | -6/Factory | Scanalyzed Remote Force Field | -6/Factory | Hacked Robot Schematics ------------------ L-31 Rogue | -7/Zion | Archive K-01 Serf | -7/Zion | Archive G-47 Trooper | -7/Zion | Archive Y-72 Warden | -7/Zion | Archive H-66 Slayer | -6/Factory | Hacked L-41 Fighter | -6/Factory | Hacked B-48 Gladiator | -5/Factory | Hacked Fabricated ------------ Dispersion Rifle | x2 | -7/Factory | Preloaded Alien Tech Used ----------------- None Achievements -------------- None Challenges ------------ None RPGLIKE | -11 -10 -10 -9 -9 -9 -8 -8 -8 -8 -8 -8 -8 -7 -7 -7 -7 -7 -6 -6 -6 -6 -6 -6 -5 --------- Run | Jun Mat Min Mat Min Exi Min Mat Gar Mat Gar Mat Gar Fac Low Low Zio Dee Pro Fac Was Fac Gar Fac Fac Levels Raised 23 | . 3 1 5 1 . 1 2 1 . 1 . . 1 . . 1 . 1 2 . . 1 1 1 XP Earned 38164 | 3000 4731 1300 8723 668 80 1304 2849 1652 491 786 3 667 1326 335 484 141 331 1327 3076 32 535 1316 942 2065 XP Spent 37465 | 2950 4350 1700 6970 . 1310 1500 600 4200 . . . 1500 330 . . 2600 320 1190 2425 . . 1100 1100 3320 Upgrades 61 | 5 9 1 11 . 3 1 1 3 . . . 2 3 . . 1 2 2 5 . . 1 4 7 Power Slot 3 | . . . 1 . . . . 1 . . . . . . . . . 1 . . . . . . Propulsion Slot 3 | . 1 . . . . . . . . . . . . . . . . . 1 . . 1 . . Utility Slot 9 | 3 1 1 1 . . . . 1 . . . . . . . 1 . . . . . . . 1 Weapon Slot 4 | 1 . . 1 . . . . 1 . . . . . . . . . . 1 . . . . . Core Integrity 8 | . . . . . 2 . . . . . . . . . . . . . . . . . . 6 Heat Dissipation 7 | . . . 2 . . . . . . . . . 3 . . . 2 . . . . . . . Inventory Capacity 6 | . 2 . 2 . 1 1 . . . . . . . . . . . . . . . . . . Sight Range 2 | . . . . . . . . . . . . . . . . . . . . . . . 2 . Sensor Range 3 | . . . . . . . . . . . . . . . . . . . 3 . . . . . Terrain Scan Density 2 | 1 . . . . . . . . . . . . . . . . . 1 . . . . . . Ranged Accuracy 5 | . 1 . 1 . . . 1 . . . . 2 . . . . . . . . . . . . Hack Attack % 3 | . 2 . 1 . . . . . . . . . . . . . . . . . . . . . Hack Defense % 2 | . 2 . . . . . . . . . . . . . . . . . . . . . . . KI Damage % 2 | . . . 2 . . . . . . . . . . . . . . . . . . . . . TH Damage % 2 | . . . . . . . . . . . . . . . . . . . . . . . 2 . Protomatter Created 7560 | . 310 345 789 191 91 257 393 827 282 527 . 321 162 98 223 . 640 155 400 . . 180 604 765 Integrity Restored 14150 | . 555 454 2161 526 273 627 921 1300 395 905 . 684 187 111 325 . 874 65 629 215 . 976 1104 863 Core 9387 | . 444 333 1794 314 273 627 465 407 362 726 . 516 142 54 222 . 340 35 493 215 . 195 661 769 Parts 4763 | . 111 121 367 212 . . 456 893 33 179 . 168 45 57 103 . 534 30 136 . . 781 443 94 Protomatter Decayed 4203 | . 110 150 278 27 . 113 127 428 181 216 . 193 88 50 105 52 364 129 186 102 149 219 433 503 Game ------ Seed DispersionActivePlating Manual? 1 Play Time 03:51:31 Cumulative 503.9 hours Start 2023.03.22 @ 11:10:33 End 2023.03.23 @ 08:21:04 Sessions 25 Manual Loads 0 Difficulty Rogue Special Mode Winter2019/RPGLIKE Game No. 535 Rogue 535 Adventurer 0 Explorer 0 Win Type - Total 1 Types 1/0/0/0/0/0/0/0/0 Lore% 61 Gallery% 82 Achievement% 65 Wizard Run 0 Options --------- ASCII 0 Keyboard 0 Movement Mouse Keybinds 0 Fullscreen 2 Font 24/Smallcaps Map View 76x50 Tactical HUD 1 Map Filters NONE Filters NONE Steam 1 RUN: 627ef310-fc5a-49c4-b20a-cac6af6da985